bitfinex-derivatives/quotes_ETHF0:USTF0_20260203
["timestamp","ask_amount","ask_price","bid_price","bid_amount"]
[1770130918799,2.35247908,2254.5,2253.3,2.43658424]
[1770130919106,2.35247908,2254.4,2252.9,2.44643035]
[1770130919397,2.35247908,2254.2,2252.9,2.44198593]
[1770130919906,2.35247908,2254.0,2252.9,2.44198593]
[1770130920303,3.05303806,2255.2,2253.1,2.43658424]
[1770130920304,1.26015481,2254.2,2253.1,2.43658424]
[1770130920505,2.35247908,2254.8,2253.3,2.43658424]
[1770130920705,7.08057492,2254.8,2253.3,2.43658424]
[1770130921004,2.35247908,2254.8,2253.5,2.43658424]
[1770130921201,7.26930603,2254.7,2253.5,2.43658424]
[1770130921404,2.35247908,2254.4,2253.0,0.03936783]
[1770130921605,2.35247908,2254.0,2252.9,2.44198593]
[1770130921909,4.39946988,2254.3,2253.1,2.65870424]
[1770130922106,2.35247908,2254.3,2253.1,2.65870424]
[1770130922302,5.07566536,2254.2,2253.2,2.43658424]
[1770130922601,2.35247908,2254.7,2253.5,2.43658424]
[1770130922805,2.35247908,2254.7,2253.1,2.4464286]
[1770130923006,2.35247908,2254.5,2253.1,2.43658424]
[1770130923403,4.91819056,2254.6,2253.1,2.43658424]
[1770130923404,2.35247908,2254.3,2253.1,2.43658424]
[1770130923606,2.35247908,2254.3,2252.9,0.00540169]
[1770130923607,2.35247908,2254.7,2253.3,2.65868424]
[1770130923809,12.87688157,2254.9,2253.2,0.38355555]
[1770130923810,2.35247908,2255.0,2253.7,2.43658424]
[1770130924206,2.35247908,2254.7,2253.3,2.43658424]
[1770130924504,0.31491467,2254.6,2253.3,2.43658424]
[1770130924808,2.35247908,2255.1,2254.0,2.65861424]
[1770130925004,2.35630322,2255.5,2254.2,2.43658424]
[1770130925305,0.00382414,2255.5,2254.9,2.43658424]
[1770130925511,2.35247908,2256.2,2254.9,2.66274975]
[1770130925806,6.90870878,2256.0,2254.9,0.00422551]
[1770130926006,2.35247908,2255.9,2254.9,0.00422551]
[1770130926405,2.35618461,2255.9,2254.9,0.00422551]
[1770130926710,0.00370553,2255.9,2254.9,2.44080975]
[1770130927405,2.35618461,2255.9,2254.9,0.00422551]
[1770130927706,2.35247908,2255.7,2254.9,0.00422551]
[1770130928008,0.00370553,2255.9,2254.0,6.77055421]
[1770130928208,0.00370553,2255.9,2255.0,0.01965949]
[1770130928409,0.00370553,2255.9,2255.0,4.45665949]
[1770130928601,0.00370553,2255.9,2255.0,4.437]
[1770130929104,0.00370553,2255.9,2255.0,0.00558493]
[1770130929105,2.35618461,2255.9,2255.0,0.00558493]
[1770130929412,2.35247908,2255.7,2254.2,0.22201]
[1770130929908,0.00370553,2255.9,2254.2,0.22201]
[1770130929909,2.35247908,2255.5,2254.2,0.22201]
[1770130930301,2.35247908,2255.5,2254.3,2.26828865]
[1770130931107,2.35247908,2255.5,2254.3,2.16013991]
[1770130931406,2.35247908,2255.3,2254.3,0.222]
[1770130931614,4.80576305,2255.4,2254.2,1.94207593]
[1770130931811,1.16604362,2255.7,2254.8,0.22195]
[1770130932108,2.35618461,2255.9,2254.8,0.22195]
[1770130932502,2.35618461,2255.9,2254.9,0.00982953]
[1770130932711,2.35618461,2255.9,2255.1,0.22192]
[1770130933210,0.00370553,2255.9,2255.1,0.22192]
[1770130933611,0.00370553,2255.9,2255.3,0.2219]
[1770130933812,2.35247908,2256.3,2255.3,0.2219]
[1770130934205,2.35247908,2256.3,2254.7,1.90542403]
[1770130934206,2.35247908,2256.1,2254.9,7.038]
[1770130934713,0.00333097,2256.1,2255.4,0.2219]
[1770130934914,2.35581005,2256.1,2254.9,7.25994]
[1770130935508,2.35581005,2256.1,2253.2,9.39826991]
[1770130935509,2.35581005,2256.1,2254.2,1.90348083]
[1770130935711,2.35247908,2255.9,2254.3,4.436]
[1770130936009,2.35247908,2255.7,2254.3,0.04915198]
[1770130936211,2.35247908,2255.5,2254.2,0.00529053]
[1770130936508,2.35247908,2255.3,2254.2,0.00529053]
[1770130937006,2.35247908,2255.1,2254.2,0.00529053]
[1770130937209,2.35247908,2255.5,2254.2,0.22730053]
[1770130937612,2.35247908,2255.4,2254.2,0.22730053]
[1770130938008,2.35247908,2255.4,2254.3,0.222]
[1770130938206,2.51253914,2255.9,2254.7,0.22196]
[1770130938412,2.51587011,2256.1,2255.0,0.22193]
[1770130938610,2.35247908,2255.7,2254.2,0.00529053]
[1770130938812,2.35247908,2255.5,2254.2,0.00529053]
[1770130939114,2.35247908,2255.5,2254.4,0.22199]
[1770130939408,2.35247908,2255.5,2254.3,0.04915198]
[1770130939409,4.86501822,2255.9,2254.5,1.97781634]
[1770130939615,0.00333097,2256.1,2255.2,0.22191]
[1770130939808,0.00333097,2256.1,2254.9,1.93848691]
[1770130940912,0.00333097,2256.1,2255.2,1.91737357]
[1770130941214,2.36989068,2256.1,2255.0,0.22193]
[1770130941514,2.36989068,2256.1,2254.5,1.91737357]
[1770130941813,2.36655971,2255.9,2254.6,0.22197]
[1770130942008,2.36655971,2255.9,2254.5,1.91737357]
[1770130942205,0.00333097,2256.1,2254.6,1.93703306]
[1770130942410,0.00333097,2256.1,2254.8,1.91737357]
[1770130942606,0.00333097,2256.1,2255.3,0.2219]
[1770130942810,2.36655971,2256.5,2255.5,0.22189]
[1770130943318,2.82684696,2256.7,2255.9,0.22184]
[1770130943614,2.36655971,2257.3,2256.2,0.22182]
[1770130943813,2.36655971,2257.3,2256.2,0.22735135]
[1770130944013,2.3708408,2257.3,2256.4,0.22179]
[1770130944217,0.00428109,2257.3,2256.8,0.22175]
[1770130944514,2.36655971,2257.7,2256.3,1.85684711]
[1770130944723,2.36655971,2257.5,2256.2,0.00553135]
[1770130945114,2.36655971,2257.5,2256.3,0.22181]
[1770130945317,2.3705768,2257.5,2256.3,0.22181]
[1770130945611,2.3705768,2257.5,2256.2,0.00553135]
[1770130945815,2.36655971,2257.3,2255.4,0.2219]
[1770130946018,4.63509967,2257.4,2255.4,0.2219]
[1770130946019,2.36655971,2257.1,2255.4,0.2219]
[1770130946217,2.36655971,2256.9,2255.4,0.2219]
[1770130946618,2.36655971,2256.7,2255.4,0.2219]
[1770130946814,2.36655971,2256.7,2255.4,0.22666888]
[1770130947015,2.36655971,2256.5,2255.4,0.00476888]
[1770130947417,2.36655971,2256.5,2255.6,0.22188]
[1770130947617,2.36655971,2256.8,2255.6,0.22188]
[1770130948821,2.36655971,2257.2,2256.0,0.22183]
[1770130949118,2.36655971,2258.0,2256.6,1.86009146]
[1770130949313,4.434,2259.2,2257.7,0.22166]
[1770130949522,4.434,2259.2,2256.7,5.09966193]
[1770130949523,47.79472313,2259.1,2256.7,5.09966193]
[1770130949719,2.51253914,2258.8,2256.7,2.31687146]
[1770130949915,4.48218399,2258.7,2257.2,0.22172]
[1770130950117,0.00544718,2258.7,2257.2,0.22712626]
[1770130950416,0.00544718,2258.7,2257.2,2.32227772]
[1770130950722,2.51253914,2260.0,2258.2,0.22162]
[1770130950918,4.44799988,2259.9,2258.2,0.22162]
[1770130951119,40.8,2259.8,2258.2,0.22162]
[1770130951421,2.36655971,2260.1,2258.2,0.22162]
[1770130951621,2.36655971,2259.9,2258.2,0.22162]
[1770130951823,2.36655971,2259.7,2258.2,0.22162]
[1770130952119,2.36655971,2259.7,2258.1,7.035]
[1770130952120,2.36981513,2260.1,2258.8,0.22156]
[1770130952328,0.00325542,2260.1,2259.1,2.33464229]
[1770130952520,0.00325542,2260.1,2259.2,7.25452]
[1770130952713,2.36981513,2260.1,2259.2,7.033]
[1770130952915,0.00325542,2260.1,2258.9,2.6]
[1770130953219,2.43718667,2261.3,2259.8,2.34182002]
[1770130953420,2.43718667,2261.3,2260.0,2.34182002]
[1770130953615,2.43718667,2261.3,2260.1,4.432]
[1770130954020,2.44146773,2261.3,2260.1,4.432]
[1770130955125,2.36655971,2261.7,2260.2,2.57365721]
[1770130955320,2.36655971,2262.4,2261.3,0.22132]
[1770130955523,40.53195635,2263.4,2261.3,0.22132]
[1770130955524,2.36655971,2263.6,2261.5,2.49862919]
[1770130955819,2.36655971,2263.4,2261.5,2.49862919]
[1770130956224,2.37092118,2263.4,2261.5,2.50337304]
[1770130956921,2.37092118,2263.4,2262.0,0.22124]
[1770130957119,2.36655971,2263.8,2262.1,2.61154597]
[1770130957327,2.36655971,2263.8,2261.7,2.39031597]
[1770130957522,2.36655971,2263.6,2261.5,0.00474385]
[1770130957721,2.36655971,2263.6,2261.5,7.03274385]
[1770130958219,2.37151871,2263.6,2261.5,7.03274385]
[1770130958421,2.36655971,2263.4,2261.5,7.03274385]
[1770130958618,2.58770971,2263.0,2261.5,4.43474385]
[1770130959025,2.36655971,2262.8,2261.5,0.00474385]
[1770130959222,2.36655971,2262.6,2260.8,2.597]
[1770130959626,2.58774971,2262.6,2260.6,4.428]
[1770130960021,2.36655971,2262.4,2260.6,4.428]
[1770130960222,2.36655971,2261.9,2259.9,0.22145]
[1770130960525,2.58784971,2261.7,2259.7,4.428]
[1770130960718,2.36655971,2261.2,2259.0,0.22154]
[1770130960919,2.36655971,2261.2,2258.8,6.82664302]
[1770130961126,2.36655971,2260.9,2258.8,4.427]
[1770130961321,2.36655971,2260.5,2258.8,4.43058821]
[1770130961627,2.36655971,2260.3,2258.8,0.00358821]
[1770130962026,2.36655971,2260.0,2257.7,4.427]
[1770130962229,40.8,2260.4,2256.8,2.67989564]
[1770130962230,2.36655971,2259.0,2256.8,2.67989564]
[1770130962425,2.36655971,2258.8,2256.2,2.45813564]
[1770130962727,2.36655971,2258.6,2256.2,2.45813564]
[1770130962921,2.37070902,2258.6,2256.2,2.46204744]
[1770130963127,2.37070902,2258.6,2256.5,2.45813564]
[1770130963427,2.36655971,2258.4,2256.4,0.2218]
[1770130963828,2.36655971,2258.4,2256.5,2.45813564]
[1770130964029,2.36655971,2258.2,2256.7,2.45813564]
[1770130964423,2.36655971,2258.2,2256.9,0.87412388]
[1770130964628,2.36655971,2258.2,2257.0,0.87412388]
[1770130964832,2.36655971,2258.2,2256.6,2.45813564]
[1770130965129,2.36655971,2258.2,2256.7,2.45813564]
[1770130965329,2.36655971,2258.2,2256.8,0.87412388]
[1770130965525,2.36655971,2258.2,2256.9,0.87412388]
[1770130966129,2.36655971,2258.2,2257.2,0.87412388]
[1770130966326,2.36655971,2258.2,2257.1,0.87412388]
[1770130966631,2.37070902,2258.6,2257.3,0.87412388]
[1770130966831,2.37070902,2258.6,2257.1,2.45813564]
[1770130967530,2.37070902,2258.6,2257.2,0.87412388]
[1770130967729,2.37070902,2258.6,2257.2,2.45813564]
[1770130968026,2.37070902,2258.6,2256.8,4.429]
[1770130968027,2.36655971,2259.4,2257.9,2.45813564]
[1770130968222,2.36655971,2259.4,2257.8,4.429]
[1770130969127,2.37217389,2259.4,2258.0,2.45813564]
[1770130969630,2.37217389,2259.4,2257.8,4.43313344]
[1770130969830,2.37217389,2259.4,2257.8,6.89126908]
[1770130970231,2.37217389,2259.4,2256.9,2.597]
[1770130970232,2.37217389,2259.4,2257.0,2.45813564]
[1770130970428,2.3806871,2259.1,2257.0,2.45813564]
[1770130970730,2.3806871,2258.9,2257.2,2.44464598]
[1770130970926,2.3806871,2258.9,2257.3,0.22171]
[1770130971131,2.3806871,2258.9,2256.7,0.22177]
[1770130971332,2.3806871,2258.6,2256.9,2.44464598]
[1770130971830,43.1806871,2258.5,2257.1,3.31876986]
[1770130972031,2.3806871,2258.4,2257.1,2.44464598]
[1770130972230,2.3806871,2258.4,2257.1,3.31876986]
[1770130972433,2.3806871,2258.4,2256.8,0.22176]
[1770130972833,2.3806871,2258.4,2257.0,2.70372276]
[1770130973328,2.3806871,2258.4,2257.0,0.22174]
[1770130973533,2.3806871,2258.4,2256.7,0.00518488]
[1770130973732,2.6022871,2258.4,2256.7,2.48716764]
[1770130974130,2.6022871,2258.4,2256.7,0.00518488]
[1770130974328,2.31007414,2258.2,2256.7,0.00518488]
[1770130974531,2.53170414,2258.2,2256.7,0.00518488]
[1770130974934,2.53170414,2258.2,2256.2,0.22182]
[1770130975133,2.53172414,2257.9,2256.1,4.429]
[1770130975829,2.31007414,2257.1,2255.3,5.07998276]
[1770130976027,2.31007414,2257.0,2255.8,0.00551096]
[1770130976235,2.31007414,2256.9,2255.8,0.00551096]
[1770130976432,2.31007414,2256.9,2255.8,0.87963484]
[1770130976631,2.31007414,2256.9,2255.9,0.87412388]
[1770130976829,2.31007414,2256.7,2255.8,0.00551096]
[1770130977028,2.31007414,2256.7,2255.0,4.43]
[1770130977228,2.31007414,2256.5,2254.7,0.22196]
[1770130977431,2.31007414,2256.3,2254.5,2.48198276]
[1770130977631,2.31007414,2256.1,2254.5,2.48198276]
[1770130978130,2.31007414,2255.9,2254.5,2.48598787]
[1770130978435,2.31007414,2255.9,2254.6,0.87412388]
[1770130978436,0.47185899,2255.8,2254.6,0.87412388]
[1770130978639,2.78193313,2255.8,2254.6,0.87412388]
[1770130978830,2.78193313,2255.8,2254.8,0.87412388]
[1770130979037,2.31007414,2255.8,2254.8,0.87412388]
[1770130979339,2.31007414,2255.6,2254.8,0.87412388]
[1770130979632,2.31007414,2255.6,2254.5,0.00400511]
[1770130979841,2.31007414,2255.4,2254.5,0.00400511]
[1770130980038,2.31327791,2255.4,2254.5,0.00400511]
[1770130980232,2.31007414,2256.2,2254.6,1.37663369]
[1770130980435,2.31007414,2256.2,2254.6,0.08848141]
[1770130980637,2.31007414,2256.0,2254.5,1.29215739]
[1770130980836,2.31007414,2256.0,2254.9,0.87092011]
[1770130981137,2.31007414,2256.4,2254.8,2.599]
[1770130981333,2.5372258,2256.4,2254.8,0.87092011]
[1770130981537,2.53190414,2256.1,2254.5,0.00400511]
[1770130981733,2.31007414,2256.1,2254.7,0.87092011]
[1770130981935,0.00535166,2256.4,2255.1,1.49928718]
[1770130982132,0.00535166,2256.4,2255.4,0.87092011]
[1770130982344,2.3154258,2256.4,2255.3,1.27736718]
[1770130982537,2.3154258,2256.4,2255.1,4.65492]
[1770130982733,2.3154258,2256.4,2255.1,4.433]
[1770130983037,2.3154258,2256.4,2255.3,0.87092011]
[1770130983237,2.3154258,2256.4,2255.1,4.433]
[1770130983537,0.00535166,2256.4,2255.9,0.87092011]
[1770130983840,0.00535166,2256.4,2255.5,0.22189]
[1770130984040,0.00535166,2256.4,2256.0,0.87092011]
[1770130984340,1.41647806,2257.2,2256.3,0.22181]
[1770130984533,1.41647806,2257.2,2256.0,4.433]
[1770130985334,7.033,2259.0,2256.1,2.11243664]
[1770130985531,7.033,2259.0,2256.0,0.00393724]
[1770130985532,0.22164,2258.0,2256.0,7.03693724]
[1770130985737,48.05464,2258.0,2256.0,7.03693724]
[1770130986040,0.22149,2259.6,2256.8,2.10907457]
[1770130986239,2.6,2259.7,2257.4,2.10907457]
[1770130986441,2.46412929,2259.9,2257.5,2.10907457]
[1770130986442,2.31007414,2259.5,2257.5,2.10907457]
[1770130986643,2.53162414,2258.9,2256.7,2.10907457]
[1770130986944,2.31007414,2258.7,2256.7,2.33084457]
[1770130987244,2.53165414,2258.7,2256.7,0.22177]
[1770130987544,2.53165414,2258.7,2256.8,0.22176]
[1770130988341,2.53166414,2258.5,2256.3,2.6]
[1770130988546,2.31007414,2258.3,2256.3,4.69570877]
[1770130988743,44.28534602,2258.8,2256.3,4.69570877]
[1770130988744,4.77420343,2259.0,2257.3,0.2217]
[1770130988939,2.31007414,2258.9,2257.4,9.12870877]
[1770130989141,2.31007414,2258.9,2257.6,2.0256382]
[1770130989443,2.31007414,2260.5,2259.1,0.22153]
[1770130989645,2.31007414,2260.3,2258.9,4.433]
[1770130990345,2.31007414,2260.3,2259.3,0.22151]
[1770130990642,0.00372879,2260.3,2259.4,0.2215]
[1770130990837,6.75145355,2260.2,2258.4,2.6]
[1770130991039,2.31007414,2259.2,2258.0,4.432]
[1770130991239,0.22148,2259.7,2258.0,4.432]
[1770130991240,2.31320087,2258.9,2258.0,4.432]
[1770130991440,2.31007414,2258.9,2257.5,2.01877693]
[1770130991743,2.31007414,2258.7,2257.4,2.599]
[1770130992045,2.313548,2258.7,2257.4,2.82587107]
[1770130992246,0.00312673,2258.5,2257.4,0.00517107]
[1770130992440,0.00347386,2258.7,2257.4,0.00517107]
[1770130992645,2.313548,2258.7,2257.4,0.00517107]
[1770130992840,2.31007414,2258.4,2257.4,0.00517107]
[1770130993039,0.00347386,2258.7,2256.8,0.22175]
[1770130993040,2.31007414,2258.0,2256.8,0.22175]
[1770130993239,2.31007414,2258.6,2256.8,2.05900636]
[1770130993844,2.31007414,2258.6,2256.9,0.22175]
[1770130994041,2.31007414,2258.6,2257.0,0.22173]
[1770130994247,2.31007414,2258.6,2257.2,0.22172]
[1770130994443,0.00347386,2258.7,2257.3,1.83725636]
[1770130994650,2.31007414,2259.4,2258.4,0.2216]
[1770130994851,2.31007414,2260.0,2257.8,2.0554425]
[1770130995049,2.31007414,2259.8,2257.9,4.431]
[1770130995251,2.31007414,2259.6,2257.9,4.431]
[1770130995447,45.72573513,2260.2,2258.6,1.81037426]
[1770130995448,39.97477818,2260.2,2258.6,1.81037426]
[1770130995655,4.8211494,2261.0,2260.0,0.22144]
[1770130995946,6.15716891,2261.5,2258.7,2.599]
[1770130995947,2.31007414,2261.8,2260.1,0.22143]
[1770130996144,2.31007414,2262.3,2259.7,0.22147]
[1770130996350,2.31007414,2261.5,2259.9,1.81037426]
[1770130996549,2.31007414,2261.5,2260.1,1.81037426]
[1770130996754,0.00443943,2261.5,2260.1,1.81037426]
[1770130997051,6.94207526,2262.5,2260.0,4.65244]
[1770130997052,2.31007414,2262.4,2260.7,1.8293549]
[1770130997252,2.31007414,2262.4,2260.8,2.598]
[1770130997456,2.31007414,2262.1,2260.8,2.598]
[1770130997650,2.31007414,2262.1,2260.4,0.2214]
[1770130997950,2.31007414,2261.1,2259.4,4.43]
[1770130998150,2.31496958,2261.1,2259.4,0.00418013]
[1770130998354,2.31496958,2261.1,2259.4,1.83353503]
[1770130998756,2.31496958,2261.1,2259.7,1.8293549]
[1770130998953,2.31496958,2261.1,2259.6,0.22148]
[1770130999157,0.00489544,2261.1,2259.7,2.02770551]
[1770130999458,0.00489544,2261.1,2259.9,1.80623551]
[1770130999651,2.31496958,2261.1,2260.0,7.027]
[1770131000049,2.31660629,2260.9,2260.0,7.027]
[1770131000453,2.46404559,2260.5,2260.0,4.429]
[1770131000658,2.46404559,2260.5,2259.4,0.00418013]
[1770131000855,0.00653215,2260.3,2259.4,0.00418013]
[1770131001054,2.45751344,2260.4,2259.4,0.00418013]
[1770131001264,2.45751344,2261.0,2259.4,1.81418859]
[1770131001559,2.45751344,2261.0,2259.5,0.22149]
[1770131001756,2.45751344,2260.7,2259.5,0.22149]
[1770131002060,0.00489544,2261.1,2260.0,0.22144]
[1770131002255,2.46894103,2261.1,2259.4,0.22568013]
[1770131002460,0.00489544,2261.1,2259.7,1.81000846]
[1770131002656,0.00489544,2261.1,2260.0,1.81000846]
[1770131002960,2.45751344,2261.6,2260.3,2.02652302]
[1770131003162,4.535,2262.2,2260.4,2.15916907]
[1770131003459,2.45751344,2261.8,2260.4,0.2214]
[1770131003653,2.45751344,2261.8,2260.7,0.22137]
[1770131003855,0.00366494,2261.8,2260.8,0.22137]
[1770131004057,0.00366494,2261.8,2260.7,1.93776907]
[1770131004365,0.00653215,2261.4,2260.5,0.2214]
[1770131004658,0.00366494,2261.8,2260.5,1.93776907]
[1770131004857,0.00366494,2261.8,2260.9,0.22136]
[1770131005054,2.45751344,2262.4,2261.2,0.22132]
[1770131005354,2.45751344,2262.4,2261.3,0.22131]
[1770131005563,2.45751344,2262.2,2261.1,4.427]
[1770131005857,2.45751344,2262.8,2261.2,1.98897872]
[1770131006063,0.00524481,2262.8,2262.0,0.22125]
[1770131006252,0.00524481,2262.8,2262.1,0.22123]
[1770131006655,0.00524481,2262.8,2262.3,0.22122]
[1770131006864,2.45751344,2263.7,2262.1,4.426]
[1770131007155,2.45751344,2263.7,2262.2,1.98680549]
[1770131007362,2.45751344,2263.7,2262.0,2.596]
[1770131007560,2.45751344,2264.8,2263.1,1.98680549]
[1770131007765,2.67853344,2264.4,2263.1,0.00490371]
[1770131008060,2.45751344,2263.6,2262.0,2.596]
[1770131008258,2.45751344,2263.4,2261.6,4.426]
[1770131008562,2.45751344,2263.2,2261.6,4.426]
[1770131008952,2.46177446,2263.2,2261.6,4.43019252]
[1770131009157,0.22115,2263.1,2261.6,4.43019252]
[1770131009355,2.45751344,2263.0,2261.6,4.43019252]
[1770131009961,2.45751344,2263.0,2261.6,0.00419252]
[1770131010157,2.45751344,2263.0,2261.0,0.22134]
[1770131010657,2.45751344,2262.8,2260.9,1.97336544]
[1770131010862,2.45751344,2262.8,2261.5,0.2213]
[1770131011254,2.45751344,2262.8,2261.5,0.22531551]
[1770131011862,2.45751344,2262.8,2261.5,0.00401551]
[1770131012057,0.22539102,2263.2,2261.5,0.00401551]
[1770131012058,2.46177446,2263.2,2261.5,1.94845173]
[1770131012264,2.46177446,2263.2,2262.2,0.22123]
[1770131012463,2.45751344,2263.7,2262.4,0.22121]
[1770131012658,2.45751344,2263.7,2262.0,4.53943622]
[1770131012862,2.45751344,2263.7,2262.0,4.76068622]
[1770131013459,2.46236973,2263.7,2262.0,4.76068622]
[1770131013857,6.29e-06,2263.7,2262.5,1.95433059]
[1770131014061,2.45751344,2265.4,2262.7,1.9543243]
[1770131014267,2.45751344,2265.0,2262.7,1.9543243]
[1770131014462,2.45751344,2264.6,2262.3,1.9543243]
[1770131014768,2.45751344,2264.4,2262.8,2.1754943]
[1770131014962,2.46158589,2264.4,2263.1,0.22114]
[1770131015168,2.46158589,2264.4,2263.1,0.00523237]
[1770131015567,0.00407245,2264.4,2263.1,2.16573157]
[1770131015761,0.00407245,2264.4,2263.2,2.1604892]
[1770131015968,0.00407245,2264.4,2263.3,0.22112]
[1770131016266,2.46158589,2264.4,2263.1,0.00523237]
[1770131016564,2.45751344,2264.2,2262.4,1.9393592]
[1770131016768,2.45751344,2264.2,2262.7,1.9393592]
[1770131017068,2.46158589,2264.4,2262.3,1.95925955]
[1770131017272,2.68260589,2264.4,2262.3,8.97525955]
[1770131017571,2.46158589,2264.4,2262.7,2.18042955]
[1770131017869,2.46158589,2264.4,2262.4,1.95925955]
[1770131018172,2.46158589,2264.4,2262.9,0.22116]
[1770131018574,2.46158589,2264.4,2263.1,0.22114]
[1770131018871,2.46158589,2264.4,2263.5,0.2211]
[1770131018872,0.00407245,2264.4,2263.5,0.2211]
[1770131019272,0.00407245,2264.4,2263.3,4.422]
[1770131019767,2.45751344,2265.8,2263.6,1.97936169]
[1770131019969,0.22196456,2266.4,2264.4,1.97936169]
[1770131020172,2.45751344,2266.3,2265.0,0.22095]
[1770131020375,2.45751344,2266.3,2265.0,2.81395]
[1770131020669,2.45751344,2266.3,2265.0,2.593]
[1770131020875,2.45751344,2266.0,2265.0,0.00393876]
[1770131021071,0.22091,2265.6,2264.0,4.421]
[1770131021271,2.45751344,2265.5,2264.0,4.421]
[1770131021768,2.45751344,2265.5,2264.1,2.1526509]
[1770131021974,2.45751344,2265.9,2264.4,2.3736609]
[1770131022276,0.00375923,2266.3,2264.8,2.1526509]
[1770131022480,2.679478,2266.4,2265.2,2.1526509]
[1770131022481,0.22196456,2266.4,2265.2,2.1526509]
[1770131022667,2.45751344,2267.2,2265.8,1.93068634]
[1770131022971,2.45751344,2268.2,2265.9,7.013]
[1770131023166,2.45751344,2268.7,2267.0,1.9135845]
[1770131023371,2.45751344,2268.7,2267.1,8.9265845]
[1770131023568,0.00535422,2268.7,2267.7,2.1342745]
[1770131023876,2.46286766,2268.7,2267.2,7.012]
[1770131024069,2.46286766,2268.7,2267.1,0.00416219]
[1770131024267,2.45751344,2267.9,2265.9,1.9135845]
[1770131024468,2.45751344,2267.5,2266.0,2.592]
[1770131024668,2.45751344,2267.9,2266.2,1.9135845]
[1770131024873,2.67819344,2267.9,2265.4,1.88565933]
[1770131025073,4.42435422,2268.7,2266.5,1.88565933]
[1770131025074,2.45751344,2268.6,2266.5,1.88565933]
[1770131025274,2.45751344,2268.6,2266.7,1.88565933]
[1770131025470,2.45751344,2268.6,2266.6,7.01]
[1770131025672,2.45751344,2268.3,2266.6,7.01]
[1770131025977,2.45751344,2268.1,2266.5,1.88876694]
[1770131026178,2.45751344,2268.1,2266.5,0.00310761]
[1770131027078,2.45751344,2267.9,2266.5,0.00310761]
[1770131027279,2.45751344,2267.7,2266.5,0.00310761]
[1770131028175,2.45751344,2267.4,2265.3,0.22093]
[1770131028680,2.45751344,2267.4,2265.4,0.22091]
[1770131029178,2.45751344,2267.4,2265.4,1.94163196]
[1770131029478,0.22068,2267.9,2266.0,1.94549495]
[1770131029673,0.22068,2267.9,2265.7,2.57876131]
[1770131029878,0.22068,2267.9,2265.8,2.57876131]
[1770131030578,0.22072,2267.5,2265.4,2.66642526]
[1770131030779,10.247,2267.4,2265.5,2.66167561]
[1770131030978,10.247,2267.4,2265.5,0.2209]
[1770131031180,10.247,2267.4,2265.7,2.66165561]
[1770131031377,2.35747206,2267.3,2265.7,2.66165561]
[1770131031577,2.35747206,2267.3,2265.4,0.00473965]
[1770131031578,2.35747206,2267.3,2266.1,0.22085]
[1770131031779,2.35747206,2267.7,2266.2,2.44077561]
[1770131031980,2.35747206,2268.3,2266.7,0.22079]
[1770131032179,2.35747206,2268.3,2266.8,0.22077]
[1770131032379,2.57811206,2268.3,2266.2,0.22083]
[1770131032681,2.35747206,2267.9,2265.9,3.57760561]
[1770131032881,2.35747206,2267.9,2266.4,0.22081]
[1770131033084,2.53159028,2268.3,2267.1,0.22075]
[1770131033274,0.00535422,2268.7,2267.8,0.22068]
[1770131033476,2.53159028,2269.2,2267.1,4.42044329]
[1770131033680,2.53159028,2269.9,2267.1,4.42044329]
[1770131033881,2.53159028,2269.9,2267.8,0.22068]
[1770131034082,2.53159028,2269.7,2267.8,0.22068]
[1770131034286,2.53159028,2269.1,2267.7,4.415]
[1770131034487,2.53159028,2268.6,2267.1,0.00444329]
[1770131034683,2.75222028,2268.4,2267.1,0.00444329]
[1770131034886,2.53159028,2268.4,2267.1,0.00444329]
[1770131035387,2.75221028,2268.4,2267.1,0.00444329]
[1770131035586,2.53159028,2268.4,2267.1,0.00444329]
[1770131037087,2.53159028,2268.4,2267.1,0.22518329]
[1770131037392,2.53159028,2268.8,2267.2,1.9432822]
[1770131037681,0.00548389,2269.1,2267.9,1.9432822]
[1770131037886,2.53159028,2269.8,2268.1,1.93779831]
[1770131038086,2.53159028,2269.8,2268.0,4.414]
[1770131038289,2.53159028,2269.6,2268.0,4.414]
[1770131038881,2.53159028,2269.5,2268.0,4.414]
[1770131039188,2.53159028,2269.5,2268.1,1.98980804]
[1770131039486,2.53159028,2269.5,2268.0,4.414]
[1770131039689,0.00387001,2269.6,2268.4,0.22062]
[1770131039886,2.75211028,2269.5,2267.1,1.99425133]
[1770131040082,2.4885493,2270.5,2268.1,1.98980804]
[1770131040288,2.53159028,2269.5,2268.0,0.22066]
[1770131040589,2.53159028,2269.5,2268.0,1.98980804]
[1770131040790,2.53159028,2269.5,2268.3,0.22063]
[1770131040994,2.53159028,2270.3,2269.0,0.22056]
[1770131041187,2.53644164,2270.3,2269.0,1.99065174]
[1770131041384,0.22196456,2271.2,2269.5,1.98512326]
[1770131041385,2.75355484,2271.2,2269.5,1.98512326]
[1770131041582,0.22196456,2271.2,2269.5,1.98512326]
[1770131041789,0.22196456,2271.2,2269.0,0.00552848]
[1770131041790,0.21609312,2271.2,2269.8,1.98512326]
[1770131041989,0.21609312,2271.2,2270.0,2.20558326]
[1770131042190,0.21609312,2271.2,2270.0,1.98512326]
[1770131042483,2.7597715,2271.2,2269.8,7.0]
[1770131042687,2.53159028,2270.9,2269.8,4.412]
[1770131043084,2.53159028,2270.9,2269.1,4.52633565]
[1770131043284,2.53159028,2270.7,2269.2,1.93833565]
[1770131043486,0.21945985,2271.2,2270.0,1.93833565]
[1770131043690,2.53159028,2272.3,2270.7,2.15873565]
[1770131043984,2.53159028,2272.3,2270.8,2.15872565]
[1770131044184,2.50621523,2273.4,2270.1,9.81161017]
[1770131044185,2.75176028,2273.2,2270.6,1.93833565]
[1770131044393,2.53159028,2272.9,2270.7,6.34933565]
[1770131044586,2.53159028,2272.6,2270.7,4.41523398]
[1770131044793,2.98173606,2272.6,2270.8,1.93833565]
[1770131045293,2.53159028,2272.2,2270.7,4.41523398]
[1770131045686,2.53159028,2272.0,2270.7,4.41523398]
[1770131045884,2.53159028,2272.0,2270.7,0.00423398]
[1770131046089,0.45014578,2271.5,2270.7,0.00423398]
[1770131046286,2.53159028,2271.9,2270.7,0.00423398]
[1770131046489,2.53159028,2272.4,2271.0,0.22037]
[1770131046690,2.53159028,2272.8,2271.3,0.22034]
[1770131047192,0.0043685,2272.9,2271.7,1.8537012]
[1770131047391,2.53595878,2272.9,2271.9,0.22028]
[1770131047592,0.0043685,2272.9,2271.9,0.22028]
[1770131047789,0.45014578,2272.8,2271.6,2.586]
[1770131047991,0.0043685,2272.9,2271.6,2.586]
[1770131048289,2.53595878,2272.9,2270.7,1.85793518]
[1770131048494,2.53595878,2272.9,2271.0,4.409]
[1770131048495,2.53159028,2272.7,2271.0,4.409]